bitfinex-derivatives/quotes_BTCF0:USTF0_20250218
["timestamp","ask_amount","ask_price","bid_price","bid_amount"]
[1739837224053,0.08913552,96147.0,96146.0,0.3608]
[1739837224254,0.09013552,96147.0,96146.0,0.3608]
[1739837225253,0.09013552,96147.0,96143.0,0.002]
[1739837225553,0.08913552,96147.0,96143.0,0.001]
[1739837225750,0.08913552,96147.0,96146.0,0.001]
[1739837225950,0.08913552,96147.0,96146.0,0.002]
[1739837226654,0.08913552,96147.0,96146.0,0.001]
[1739837227758,0.38913552,96147.0,96146.0,0.001]
[1739837228454,0.59714342,96147.0,96146.0,0.002]
[1739837228659,0.29714342,96147.0,96146.0,0.002]
[1739837229156,0.59714342,96147.0,96146.0,0.001]
[1739837229358,0.59714342,96147.0,96146.0,0.002]
[1739837230048,0.59714342,96147.0,96146.0,0.001]
[1739837230244,0.59714342,96147.0,96146.0,0.002]
[1739837231753,0.29714342,96147.0,96146.0,0.001]
[1739837231957,0.59714342,96147.0,96146.0,0.002]
[1739837232750,0.29714342,96147.0,96146.0,0.002]
[1739837235059,0.29714342,96147.0,96146.0,0.001]
[1739837235260,0.29714342,96147.0,96146.0,0.002]
[1739837235856,0.59714342,96147.0,96146.0,0.002]
[1739837236053,0.59714342,96147.0,96146.0,0.0005466]
[1739837237764,0.2080132,96144.0,96130.0,0.3608]
[1739837237964,0.09985311,96140.0,96130.0,0.3608]
[1739837238164,0.0362,96139.0,96130.0,0.3608]
[1739837238365,0.1114,96138.0,96130.0,0.3608]
[1739837239071,0.1114,96138.0,96130.0,0.3618]
[1739837239460,0.2080308,96136.0,96130.0,0.3628]
[1739837240860,0.2080308,96136.0,96130.0,0.3618]
[1739837241059,0.2080308,96136.0,96130.0,0.3628]
[1739837241469,0.002,96138.0,96130.0,0.3628]
[1739837241667,0.11128,96137.0,96132.0,0.3608]
[1739837241859,0.002,96136.0,96133.0,0.0347]
[1739837242268,0.001,96136.0,96133.0,0.0347]
[1739837242467,0.002,96136.0,96133.0,0.0347]
[1739837243971,0.002,96136.0,96133.0,0.0357]
[1739837244159,0.001,96136.0,96133.0,0.0357]
[1739837244972,0.002,96136.0,96133.0,0.0367]
[1739837246162,0.002,96136.0,96133.0,0.0357]
[1739837246366,0.002,96136.0,96133.0,0.0367]
[1739837247064,0.04493967,96147.0,96133.0,0.0357]
[1739837247268,0.04493967,96147.0,96146.0,0.3608]
[1739837248359,0.04593967,96147.0,96146.0,0.3608]
[1739837248762,0.04593967,96147.0,96146.0,0.3618]
[1739837248973,0.04593967,96147.0,96146.0,0.3628]
[1739837248974,0.04693967,96147.0,96146.0,0.3628]
[1739837249372,0.04593967,96147.0,96146.0,0.3618]
[1739837249577,0.04693967,96147.0,96146.0,0.33807191]
[1739837249764,0.04693967,96147.0,96146.0,0.29847791]
[1739837251067,0.04493967,96147.0,96146.0,0.002]
[1739837251574,0.04493967,96147.0,96146.0,0.001]
[1739837251875,0.04493967,96147.0,96146.0,0.002]
[1739837253271,0.2080561,96124.0,96120.0,0.15682273]
[1739837253475,0.0369,96123.0,96120.0,0.15682273]
[1739837254963,0.0369,96123.0,96120.0,0.15882273]
[1739837256574,0.0369,96123.0,96121.0,0.0725]
[1739837258070,0.0389,96123.0,96121.0,0.0745]
[1739837258683,0.0389,96123.0,96122.0,0.0336]
[1739837259783,0.0389,96123.0,96121.0,0.002]
[1739837260271,0.0389,96123.0,96122.0,0.001]
[1739837260978,0.0379,96123.0,96105.0,0.0339]
[1739837261173,0.0389,96123.0,96122.0,0.001]
[1739837261776,0.0379,96123.0,96122.0,0.001]
[1739837261982,0.0389,96123.0,96122.0,0.002]
[1739837262483,0.0389,96123.0,96122.0,0.001]
[1739837264178,0.0379,96123.0,96122.0,0.001]
[1739837264382,0.0389,96123.0,96122.0,0.002]
[1739837266882,0.0389,96123.0,96118.0,0.00015605]
[1739837268089,0.3608,96121.0,96118.0,0.00115605]
[1739837268475,0.3608,96121.0,96118.0,0.00215605]
[1739837269482,0.3618,96121.0,96118.0,0.00115605]
[1739837269696,0.3628,96121.0,96118.0,0.00215605]
[1739837273594,0.002,96121.0,96118.0,0.00215605]
[1739837274892,0.002,96121.0,96119.0,0.035]
[1739837275183,0.11012,96120.0,96119.0,0.1073]
[1739837275387,0.002,96121.0,96119.0,0.1073]
[1739837276394,0.002,96121.0,96119.0,0.1083]
[1739837277191,0.003,96121.0,96119.0,0.1093]
[1739837287899,0.003,96121.0,96120.0,0.3608]
[1739837288097,0.11208,96121.0,96120.0,0.3608]
[1739837289101,0.11008,96121.0,96120.0,0.001]
[1739837289294,0.11208,96121.0,96120.0,0.002]
[1739837291591,0.11208,96121.0,96118.0,0.00015605]
[1739837291791,0.0725,96120.0,96118.0,0.00015605]
[1739837292687,0.0725,96120.0,96112.0,0.3608]
[1739837293500,0.0725,96120.0,96118.0,0.001]
[1739837294007,0.0725,96120.0,96118.0,0.002]
[1739837294305,0.0755,96120.0,96118.0,0.001]
[1739837294902,0.0755,96120.0,96118.0,0.002]
[1739837295097,0.0755,96120.0,96118.0,0.001]
[1739837295305,0.0785,96120.0,96118.0,0.001]
[1739837296089,0.0785,96120.0,96118.0,0.002]
[1739837296302,0.2865654,96120.0,96109.0,0.00015605]
[1739837296497,0.3608,96110.0,96109.0,0.00015605]
[1739837297802,0.39883154,96110.0,96109.0,0.00115605]
[1739837298195,0.40183154,96110.0,96109.0,0.00215605]
[1739837298908,0.40183154,96110.0,96109.0,0.00115605]
[1739837299110,0.40483154,96110.0,96109.0,0.00215605]
[1739837310907,0.40483154,96110.0,96096.0,0.33100644]
[1739837311107,0.3608,96097.0,96092.0,0.00156105]
[1739837311312,0.0704,96096.0,96092.0,0.00156105]
[1739837313619,0.0744,96096.0,96092.0,0.00156105]
[1739837313924,4.648e-05,96094.0,96092.0,0.00156105]
[1739837314116,0.03712994,96094.0,96092.0,0.00156105]
[1739837314317,0.03712994,96094.0,96092.0,0.00256105]
[1739837314515,0.03712994,96094.0,96092.0,0.00356105]
[1739837315115,0.03712994,96094.0,96092.0,0.00256105]
[1739837315316,0.05012994,96094.0,96092.0,0.00256105]
[1739837320931,0.05012994,96094.0,96092.0,0.001]
[1739837321126,0.05012994,96094.0,96077.0,0.0708]
[1739837321127,0.0337,96093.0,96077.0,0.0708]
[1739837321328,0.49194266,96087.0,96077.0,0.0708]
[1739837321524,0.0351,96086.0,96077.0,0.0708]
[1739837322029,0.0351,96085.0,96077.0,0.0708]
[1739837324822,0.0451,96085.0,96077.0,0.0708]
[1739837326826,0.0451,96085.0,96073.0,0.3608]
[1739837327034,0.13114266,96083.0,96073.0,0.3608]
[1739837327825,0.3608,96079.0,96072.0,0.00015605]
[1739837329925,0.3628,96079.0,96072.0,0.00015605]
[1739837330433,0.3648,96079.0,96072.0,0.00015605]
[1739837330636,0.3708,96079.0,96072.0,0.00015605]
[1739837334538,0.01,96079.0,96075.0,0.3608]
[1739837334738,0.10784,96078.0,96076.0,0.1065]
[1739837334944,0.01,96079.0,96076.0,0.1065]
[1739837335328,0.01,96079.0,96077.0,0.2081578]
[1739837336134,0.004,96079.0,96076.0,0.1065]
[1739837336340,0.011,96079.0,96076.0,0.1065]
[1739837336932,0.012,96079.0,96076.0,0.1075]
[1739837337831,0.005,96079.0,96076.0,0.1075]
[1739837338137,0.012,96079.0,96076.0,0.1075]
[1739837339737,0.012,96079.0,96076.0,0.0719]
[1739837345147,0.00060001,96100.0,96078.0,0.3608]
[1739837345335,0.0683,96105.0,96093.0,0.3608]
[1739837345542,0.3608,96109.0,96102.0,0.2081026]
[1739837345750,0.0683,96118.0,96102.0,0.3608]
[1739837346044,0.0683,96118.0,96113.0,0.2080799]
[1739837347146,0.0753,96118.0,96113.0,0.2080799]
[1739837347445,0.11472846,96118.0,96113.0,0.2090799]
[1739837348638,0.11472846,96118.0,96113.0,0.001]
[1739837351747,0.3608,96116.0,96113.0,0.001]
[1739837351947,0.1446,96115.0,96113.0,0.001]
[1739837353057,0.1446,96115.0,96113.0,0.002]
[1739837353743,0.1446,96115.0,96106.0,0.00015605]
[1739837353937,0.05,96115.0,96113.0,0.002]
[1739837355346,0.10844,96114.0,96113.0,0.001]
[1739837356046,0.10844,96114.0,96107.0,0.2080922]
[1739837356247,0.05,96115.0,96107.0,0.2080922]
[1739837356248,0.05,96115.0,96113.0,0.001]
[1739837356547,0.10832,96114.0,96113.0,0.001]
[1739837356740,0.11532,96114.0,96113.0,0.002]
[1739837356945,0.11532,96114.0,96113.0,0.001]
[1739837357338,0.12232,96114.0,96113.0,0.001]
[1739837357741,0.12232,96114.0,96113.0,0.002]
[1739837362053,0.12232,96114.0,96106.0,0.00015605]
[1739837362254,0.014,96114.0,96106.0,0.00015605]
[1739837363044,0.007,96114.0,96106.0,0.00015605]
[1739837363242,0.007,96114.0,96106.0,0.00115605]
[1739837363443,0.014,96114.0,96106.0,0.00215605]
[1739837363642,0.3608,96107.0,96090.0,0.3608]
[1739837363844,0.3608,96098.0,96090.0,0.3608]
[1739837364048,0.1764,96097.0,96090.0,0.3608]
[1739837365047,0.1764,96097.0,96090.0,0.3618]
[1739837365962,0.1834,96097.0,96090.0,0.3618]
[1739837366259,0.1834,96097.0,96090.0,0.3628]
[1739837366746,0.0338,96096.0,96090.0,0.3628]
[1739837367254,0.06668682,96096.0,96090.0,0.3628]
[1739837367960,0.07368682,96096.0,96090.0,0.3628]
[1739837368658,0.07368682,96096.0,96090.0,0.3618]
[1739837368864,0.07368682,96096.0,96090.0,0.3628]
[1739837369546,0.08068682,96096.0,96090.0,0.3628]
[1739837370860,0.3608,96091.0,96090.0,0.002]
[1739837371062,0.4688,96091.0,96090.0,0.002]
[1739837372261,0.4688,96091.0,96090.0,0.001]
[1739837372566,0.4828,96091.0,96090.0,0.002]
[1739837392570,0.3748,96091.0,96090.0,0.002]
[1739837392775,0.48136,96091.0,96090.0,0.002]
[1739837394968,0.3748,96091.0,96090.0,0.002]
[1739837395169,0.4812,96091.0,96090.0,0.002]
[1739837395370,0.3748,96091.0,96090.0,0.002]
[1739837395673,0.48116,96091.0,96090.0,0.002]
[1739837396069,0.3748,96091.0,96090.0,0.002]
[1739837396270,0.48112,96091.0,96090.0,0.002]
[1739837399572,0.12032,96091.0,96090.0,0.002]
[1739837403176,0.3284475,96091.0,96090.0,0.002]
[1739837403372,0.3748,96091.0,96079.0,0.1476807]
[1739837403580,0.2081625,96075.0,96072.0,0.01491493]
[1739837403781,0.1167,96074.0,96067.0,0.17110268]
[1739837403979,0.2081774,96068.0,96067.0,0.17110268]
[1739837405481,0.2151774,96068.0,96067.0,0.17210268]
[1739837405987,0.2221774,96068.0,96067.0,0.1505893]
[1739837406390,0.2221774,96068.0,96067.0,0.13258062]
[1739837407880,0.2221774,96068.0,96067.0,0.001]
[1739837408680,0.014,96068.0,96067.0,0.001]
[1739837408880,0.12028,96068.0,96067.0,0.001]
[1739837415305,0.12036,96068.0,96067.0,0.001]
[1739837415706,0.014,96068.0,96067.0,0.001]
[1739837415900,0.1204,96068.0,96067.0,0.001]
[1739837416299,0.12036,96068.0,96067.0,0.001]
[1739837416611,0.12036,96068.0,96067.0,0.0409]
[1739837416798,0.014,96068.0,96067.0,0.0409]
[1739837418604,0.014,96068.0,96067.0,0.001]
[1739837418804,0.12032,96068.0,96067.0,0.001]
[1739837429811,0.48112,96068.0,96067.0,0.001]
[1739837436015,0.1198,96068.0,96067.0,0.001]
[1739837436213,0.1198,96068.0,96067.0,0.0408]
[1739837438117,0.11964,96068.0,96067.0,0.0408]
[1739837448021,0.11964,96068.0,96067.0,0.0398]
[1739837448619,0.11264,96068.0,96067.0,0.0398]
[1739837448824,0.11964,96068.0,96067.0,0.0398]
[1739837449229,0.11264,96068.0,96067.0,0.0398]
[1739837449522,0.11964,96068.0,96067.0,0.0398]
[1739837450320,0.11264,96068.0,96067.0,0.0398]
[1739837450526,0.11964,96068.0,96067.0,0.0398]
[1739837452212,0.007,96068.0,96067.0,0.0398]
[1739837452417,0.1192,96068.0,96067.0,0.0398]
[1739837453924,0.1122,96068.0,96067.0,0.0398]
[1739837454126,0.1192,96068.0,96067.0,0.0398]
[1739837455329,0.1122,96068.0,96067.0,0.0398]
[1739837455628,0.1192,96068.0,96067.0,0.0398]
[1739837456418,0.11896,96068.0,96067.0,0.0398]
[1739837457426,0.11892,96068.0,96067.0,0.0398]
[1739837458429,0.11884,96068.0,96067.0,0.0398]
[1739837459322,0.014,96068.0,96067.0,0.0398]
[1739837459524,0.1188,96068.0,96067.0,0.0398]
[1739837460427,0.11872,96068.0,96067.0,0.0398]
[1739837461422,0.11864,96068.0,96066.0,0.5697004]
[1739837461736,0.014,96068.0,96066.0,0.5689804]
[1739837462914,0.014,96068.0,96066.0,0.3608]
[1739837463132,0.1046,96067.0,96066.0,0.3608]
[1739837464022,0.1046,96067.0,96060.0,0.2191]
[1739837464222,0.0377,96066.0,96060.0,0.2191]
[1739837464631,0.0765,96065.0,96060.0,0.2191]
[1739837465027,0.0765,96065.0,96060.0,0.0979]
[1739837465330,0.3608,96061.0,96060.0,0.0373]
[1739837466034,0.3608,96061.0,96047.0,0.21819032]
[1739837466344,0.3608,96048.0,96046.0,0.31240836]
[1739837466520,0.3608,96048.0,96046.0,0.00156161]
[1739837467826,0.3678,96048.0,96046.0,0.00156161]
[1739837468433,0.0762,96047.0,96046.0,0.00156161]
[1739837469631,0.0832,96047.0,96046.0,0.00156161]
[1739837470728,0.0882,96047.0,96046.0,0.00156161]
[1739837471632,0.012,96047.0,96046.0,0.00156161]
[1739837471838,0.20835774,96057.0,96053.0,0.2082098]
[1739837471839,0.00015614,96057.0,96053.0,0.2082098]
[1739837472138,0.02315501,96057.0,96054.0,0.0404]
[1739837472429,0.00015614,96057.0,96047.0,0.0395]
[1739837472635,0.3608,96055.0,96047.0,0.0395]
[1739837473734,0.3678,96055.0,96047.0,0.0395]
[1739837474326,0.3678,96055.0,96046.0,0.00156161]
[1739837474532,0.0375,96054.0,96046.0,0.00156161]
[1739837475926,0.3608,96047.0,96046.0,0.00156161]
[1739837476433,0.3608,96047.0,96046.0,0.001]
[1739837476635,0.46584,96047.0,96046.0,0.001]
[1739837476940,0.46584,96047.0,96031.0,0.2082565]
[1739837477233,0.46584,96047.0,96027.0,0.1163]
[1739837477234,0.0749,96046.0,96032.0,0.2082542]
[1739837478934,0.0759,96046.0,96027.0,0.1163]
[1739837479130,0.0759,96046.0,96033.0,0.5690518]
[1739837479334,0.0759,96046.0,96033.0,0.5697718]
[1739837479933,0.0789,96046.0,96033.0,0.5697718]
[1739837480628,0.0789,96046.0,96034.0,0.2082502]
[1739837480835,0.0789,96046.0,96033.0,0.3608]
[1739837481036,0.0789,96046.0,96038.0,0.208241]
[1739837481242,0.0789,96046.0,96039.0,0.1154]
[1739837482437,0.0799,96046.0,96039.0,0.1154]
[1739837483131,0.0809,96046.0,96039.0,0.1154]
[1739837483644,0.3608,96043.0,96033.0,0.3608]
[1739837483834,0.0373,96042.0,96025.0,0.0777]
[1739837484747,0.0373,96042.0,96039.0,0.001]
[1739837485244,0.0443,96042.0,96037.0,0.00115614]
[1739837487239,0.0513,96042.0,96037.0,0.00115614]
[1739837487843,0.2082409,96039.0,96037.0,0.00115614]
[1739837488448,0.2082409,96039.0,96037.0,0.00031485]
[1739837488653,0.2082409,96039.0,96037.0,1e-08]
[1739837488950,0.2152409,96039.0,96037.0,0.00100001]
[1739837489354,0.09092566,96028.0,96018.0,0.0371]
[1739837489540,0.3608,96026.0,96018.0,0.0371]
[1739837490554,0.3608,96026.0,96019.0,0.0367]
[1739837491358,0.3668,96026.0,96019.0,0.0367]
[1739837491872,0.3678,96026.0,96019.0,0.0367]
[1739837492557,0.3748,96026.0,96019.0,0.0367]
[1739837497449,0.3738,96026.0,96019.0,0.0377]
[1739837497959,0.3748,96026.0,96019.0,0.0377]
[1739837498161,0.3748,96026.0,96019.0,0.0387]
[1739837498856,0.3748,96026.0,96019.0,0.0377]
[1739837499062,0.3748,96026.0,96019.0,0.0387]
[1739837500765,0.3608,96025.0,96019.0,0.0387]
[1739837501962,0.3678,96025.0,96019.0,0.0387]
[1739837502162,0.3678,96025.0,96019.0,0.0377]
[1739837502358,0.3748,96025.0,96019.0,0.0387]
[1739837513074,0.3748,96025.0,96019.0,0.002]
[1739837513268,0.10424,96024.0,96019.0,0.002]
[1739837513463,0.14324,96024.0,96019.0,0.002]
[1739837514370,0.15724,96024.0,96019.0,0.002]
[1739837515269,0.3608,96020.0,95992.0,0.3608]
[1739837515475,0.15724,96024.0,95993.0,0.17089129]
[1739837515476,0.7216,96006.0,95993.0,0.17089129]
[1739837515678,0.0799,96005.0,95993.0,0.17089129]
[1739837515868,0.09967749,96005.0,95993.0,0.17089129]
[1739837517374,0.05957749,96005.0,95993.0,0.17089129]
[1739837517777,0.06657749,96005.0,95993.0,0.17089129]
[1739837517965,0.07357749,96005.0,95993.0,0.17089129]
[1739837518473,0.0385,96004.0,95993.0,0.17089129]
[1739837519977,0.0385,96004.0,95985.0,0.00072]
[1739837519978,0.2083287,95999.0,95985.0,0.00072]
[1739837520172,0.3608,96001.0,95979.0,0.17089129]
[1739837520173,0.3608,95986.0,95979.0,0.28519129]
[1739837520365,0.0781,95985.0,95979.0,0.28519129]
[1739837521781,0.0791,95985.0,95979.0,0.28519129]
[1739837524765,0.27175931,95986.0,95979.0,0.28519129]
[1739837526681,0.27375931,95986.0,95979.0,0.28519129]
[1739837526880,0.002,95986.0,95981.0,0.3608]
[1739837527386,0.00015622,95992.0,95991.0,0.2083446]
[1739837527576,1e-08,95992.0,95991.0,0.5691446]
[1739837529174,1e-08,95992.0,95991.0,0.74003589]
[1739837530284,0.01000001,95992.0,95991.0,0.74003589]
[1739837532974,0.01000001,95992.0,95991.0,0.53169129]
[1739837533980,0.01000001,95992.0,95991.0,0.64669129]
[1739837536184,0.3608,96008.0,95991.0,0.64669129]
[1739837536384,0.3608,96008.0,96001.0,0.3608]
[1739837536584,0.10464,96007.0,96002.0,0.0766]
[1739837536786,0.12462917,96007.0,96002.0,0.0766]
[1739837536989,0.01998917,96007.0,96003.0,0.0365]
[1739837537185,0.004,96005.0,96002.0,0.0366]
[1739837537393,0.01,96005.0,96002.0,0.0366]
[1739837537983,0.006,96005.0,96002.0,0.0366]
[1739837538589,0.006,96005.0,96001.0,0.3608]
[1739837539177,0.13863567,96007.0,96003.0,0.001]
[1739837539494,0.02703567,96007.0,96003.0,0.001]
[1739837539688,0.007,96005.0,96003.0,0.001]
[1739837539890,0.10476,96004.0,96003.0,0.001]
[1739837540390,0.10476,96004.0,96001.0,0.3618]
[1739837540784,0.10476,96004.0,96003.0,0.001]
[1739837542409,0.11876,96004.0,96003.0,0.001]
[1739837549608,0.11876,96004.0,95985.0,0.14860675]
[1739837549810,0.3608,95989.0,95985.0,0.14860675]
[1739837550004,0.1124,95988.0,95985.0,0.14860675]
[1739837550208,0.1124,95988.0,95982.0,0.00015622]
[1739837552409,0.2083612,95984.0,95982.0,1e-08]
[1739837553200,0.2083612,95984.0,95982.0,0.00100001]
[1739837553802,0.2143612,95984.0,95982.0,0.00100001]
[1739837554403,0.006,95984.0,95982.0,0.00100001]
[1739837554606,0.10424,95983.0,95982.0,0.00100001]
[1739837555806,0.11124,95983.0,95982.0,0.00100001]
[1739837556007,0.11724,95983.0,95982.0,0.00100001]
[1739837585646,0.11724,95983.0,95974.0,0.05029047]
[1739837585831,0.3608,95976.0,95974.0,0.0391]
[1739837586033,0.0402,95975.0,95974.0,0.0391]
[1739837586939,0.0402,95975.0,95974.0,0.0401]
[1739837587439,0.0402,95975.0,95974.0,1e-08]
[1739837587839,0.0462,95975.0,95974.0,0.001]
[1739837588142,0.14952,95975.0,95974.0,0.001]
[1739837588725,0.15352,95975.0,95974.0,0.001]
[1739837589130,0.11332,95975.0,95974.0,0.001]
[1739837590241,0.11332,95975.0,95968.0,0.01869007]
[1739837590542,0.01,95975.0,95967.0,0.03168392]
[1739837590742,0.01,95975.0,95968.0,0.0406]
[1739837590940,0.14332,95974.0,95968.0,0.0406]
[1739837591340,0.0398,95974.0,95968.0,0.0406]
[1739837591535,0.10348,95973.0,95968.0,0.0406]
[1739837592733,0.10548,95973.0,95968.0,0.0406]
[1739837593235,0.10948,95973.0,95968.0,0.0406]
[1739837595647,0.12769538,95973.0,95968.0,0.0406]
[1739837595944,0.02421538,95973.0,95971.0,0.2083863]
[1739837597141,0.02021538,95973.0,95971.0,0.2083863]
[1739837597338,0.02521538,95973.0,95971.0,0.2083863]
[1739837598339,0.02621538,95973.0,95971.0,0.2083863]
[1739837599654,0.02621538,95973.0,95969.0,0.17089129]
[1739837601745,0.02521538,95973.0,95969.0,0.17089129]
[1739837601934,0.02721538,95973.0,95969.0,0.17089129]
[1739837602635,0.02721538,95973.0,95969.0,0.37928169]
[1739837603439,0.02721538,95973.0,95971.0,0.2083875]
[1739837604645,0.02521538,95973.0,95971.0,0.2083875]
[1739837604946,0.02621538,95973.0,95971.0,0.2083875]
[1739837605651,0.02621538,95973.0,95969.0,0.17089129]
[1739837606850,0.02621538,95973.0,95969.0,0.37928239]
[1739837607046,0.02621538,95973.0,95970.0,0.2083893]
[1739837607655,0.02521538,95973.0,95970.0,0.2083893]
[1739837607848,0.02421538,95973.0,95970.0,0.2083893]
[1739837609153,0.02421538,95973.0,95971.0,0.2083861]
[1739837611152,0.02221538,95973.0,95971.0,0.2083861]
[1739837611352,0.02521538,95973.0,95971.0,0.2083861]
[1739837611556,0.02621538,95973.0,95971.0,0.2083861]
[1739837612550,0.02621538,95973.0,95969.0,0.17089129]
[1739837612756,0.0808,95972.0,95969.0,0.17089129]
[1739837613151,0.0382,95971.0,95969.0,0.17089129]
[1739837614449,0.0402,95971.0,95969.0,0.15839558]
[1739837614655,0.17411764,95976.0,95969.0,0.15839558]
[1739837614960,0.004,95973.0,95969.0,0.15839558]
[1739837615347,0.004,95973.0,95958.0,0.0406]
[1739837615650,0.05976707,95968.0,95958.0,0.0406]
[1739837615849,0.3608,95961.0,95958.0,0.0406]
[1739837616042,0.10312,95960.0,95958.0,0.0406]
[1739837617657,0.10412,95960.0,95958.0,0.0406]
[1739837617850,0.0405,95959.0,95958.0,0.0406]
[1739837619349,0.0425,95959.0,95958.0,0.0406]
[1739837620549,0.0435,95959.0,95958.0,0.0406]
[1739837621959,0.25080107,95961.0,95958.0,0.0406]
[1739837623161,0.25180107,95961.0,95958.0,0.0406]
[1739837623554,0.25280107,95961.0,95958.0,0.0406]
[1739837625357,0.2084209,95956.0,95946.0,0.0376]
[1739837625557,0.3608,95952.0,95946.0,0.0376]
[1739837625753,0.10304,95951.0,95946.0,0.0376]
[1739837626464,0.10304,95951.0,95946.0,0.0396]
[1739837627057,0.10304,95951.0,95946.0,0.002]
[1739837627360,0.2084381,95948.0,95946.0,0.002]
[1739837627754,0.002,95951.0,95946.0,0.002]
[1739837627961,0.002,95951.0,95938.0,0.0415]
[1739837627962,0.46384,95950.0,95942.0,0.08762187]
[1739837628265,0.2084484,95943.0,95929.0,0.0415]
[1739837628461,0.3608,95935.0,95929.0,0.0805]
[1739837628667,0.37941939,95935.0,95929.0,0.0805]
[1739837629866,0.38341939,95935.0,95929.0,0.0805]
[1739837630568,0.38541939,95935.0,95929.0,0.0805]
[1739837636868,0.38541939,95935.0,95929.0,0.2889779]
[1739837639067,0.02461939,95935.0,95933.0,0.20847]
[1739837639362,0.02461939,95935.0,95933.0,0.56927]
[1739837639554,0.9086,95948.0,95943.0,0.2084472]
[1739837639761,0.9086,95948.0,95944.0,0.0796]
[1739837639961,0.10308,95947.0,95944.0,0.0796]
[1739837640165,0.10308,95947.0,95945.0,0.208443]
[1739837640471,0.00056001,95948.0,95947.0,0.2084397]
[1739837640656,0.02339533,95948.0,95947.0,0.2084397]
[1739837640861,0.3608,95955.0,95947.0,0.2084397]
[1739837641155,0.10308,95954.0,95947.0,0.2084397]
[1739837641362,0.006,95948.0,95947.0,0.2084397]
[1739837641860,0.013,95948.0,95947.0,0.2094397]
[1739837642066,0.11608,95948.0,95947.0,0.2094397]
[1739837642259,0.013,95948.0,95947.0,0.2094397]
[1739837642462,0.11608,95948.0,95947.0,0.2094397]
[1739837642858,0.90932001,95966.0,95955.0,0.2084223]
[1739837643171,0.02338948,95956.0,95955.0,0.5692223]
[1739837643371,0.00015631,95956.0,95955.0,0.5692223]
[1739837644272,0.00715631,95956.0,95955.0,0.5692223]
[1739837644970,0.01415631,95956.0,95955.0,0.5702223]
[1739837645363,0.03752835,95956.0,95955.0,0.5702223]
[1739837645562,0.03752835,95956.0,95955.0,0.2094223]
[1739837646075,0.03752835,95956.0,95955.0,0.5702223]
[1739837646665,0.50886458,95977.0,95970.0,0.2083877]
[1739837646862,0.50886458,95977.0,95971.0,0.081]
[1739837647067,0.50886458,95977.0,95971.0,0.1227]
[1739837647662,0.51386458,95977.0,95971.0,0.1227]
[1739837647868,0.51386458,95977.0,95971.0,0.3310857]
[1739837648071,0.51386458,95977.0,95972.0,0.2083842]
[1739837648264,0.53704712,95977.0,95972.0,0.2083842]
[1739837649364,0.53604712,95977.0,95972.0,0.2083842]
[1739837649975,0.53504712,95977.0,95972.0,0.2083842]
[1739837650372,0.53504712,95977.0,95972.0,0.2093842]
[1739837651074,0.53504712,95977.0,95972.0,0.2083842]
[1739837651278,0.53504712,95977.0,95972.0,0.2093842]
[1739837652067,0.0422,95976.0,95972.0,0.2093842]
[1739837654568,0.17124712,95977.0,95976.0,0.2083767]
[1739837656074,0.17524712,95977.0,95976.0,0.2093767]
[1739837656670,0.17524712,95977.0,95976.0,0.2103767]
[1739837659671,0.17524712,95977.0,95976.0,0.2093767]
[1739837660073,0.17124712,95977.0,95976.0,0.2083767]
[1739837660372,0.17424712,95977.0,95976.0,0.2083767]
[1739837662476,0.17524712,95977.0,95976.0,0.2083767]
[1739837663381,0.17124712,95977.0,95976.0,0.2083767]
[1739837663571,0.17524712,95977.0,95976.0,0.2083767]
[1739837664272,0.17524712,95977.0,95976.0,0.2093767]
[1739837665188,0.02718254,95977.0,95976.0,0.2093767]
[1739837665376,0.02718254,95977.0,95976.0,0.5701767]
[1739837665865,0.3608,95990.0,95976.0,0.3618]
[1739837666070,0.3608,95990.0,95983.0,0.2083614]
[1739837666071,0.05974943,95990.0,95983.0,0.2083614]
[1739837666473,0.02257287,95984.0,95983.0,0.2083614]
[1739837666674,0.00015631,95984.0,95983.0,0.2083614]
[1739837667272,0.00415631,95984.0,95983.0,0.2093614]
[1739837667870,0.00415631,95984.0,95983.0,0.2103614]
[1739837668777,0.00015631,95984.0,95983.0,0.2093614]
[1739837669381,0.0234586,95984.0,95983.0,0.2093614]
[1739837672384,0.0234586,95984.0,95983.0,0.001]
[1739837673373,0.0234586,95984.0,95980.0,0.2083678]
[1739837673581,0.0234586,95984.0,95976.0,0.3608]
[1739837673776,0.0234586,95984.0,95981.0,0.2083647]
[1739837674185,0.0234586,95984.0,95983.0,0.001]
[1739837675070,0.0234586,95984.0,95981.0,0.2083647]
[1739837675475,0.0234586,95984.0,95976.0,0.3608]
[1739837676076,0.21588746,95985.0,95976.0,0.3608]
[1739837676487,0.21588746,95985.0,95977.0,0.2083738]
[1739837676784,0.21588746,95985.0,95983.0,0.001]
[1739837676981,0.23866375,95985.0,95983.0,0.001]
[1739837677184,0.09105091,95978.0,95972.0,0.2083835]
[1739837677379,0.02277629,95985.0,95973.0,0.2487812]
[1739837677580,0.0383,95988.0,95978.0,0.3608]
[1739837677781,0.0383,95988.0,95979.0,0.0383]
[1739837678176,0.09105091,95990.0,95983.0,0.001]
[1739837678373,0.09105091,95993.0,95983.0,0.20936]
[1739837678582,0.103,95990.0,95983.0,0.001]
[1739837678982,0.0395,95989.0,95983.0,0.001]
[1739837679990,0.0395,95989.0,95980.0,0.0391]
[1739837680780,0.0405,95989.0,95983.0,0.001]
[1739837681484,0.0405,95989.0,95980.0,0.0401]
[1739837683493,0.0395,95989.0,95980.0,0.0391]
[1739837683687,0.0395,95989.0,95983.0,0.001]
[1739837684286,0.0395,95989.0,95980.0,0.0391]
[1739837685187,0.0395,95989.0,95983.0,0.001]
[1739837686789,0.0395,95989.0,95980.0,0.0401]
[1739837687596,0.0395,95989.0,95983.0,0.001]
[1739837688002,0.06485986,95991.0,95983.0,0.001]